bitfinex-derivatives/quotes_BTCF0:USTF0_20230401
["timestamp","ask_amount","ask_price","bid_price","bid_amount"]
[1680359857073,0.0705,28365.0,28364.0,0.0699]
[1680359858676,0.0735,28365.0,28364.0,0.0699]
[1680359859970,0.0735,28365.0,28363.0,0.3007]
[1680359860275,0.003,28365.0,28364.0,0.1201]
[1680359862079,0.003,28365.0,28364.0,0.0701]
[1680359864378,0.003,28365.0,28364.0,0.12179686]
[1680359865485,0.073,28365.0,28364.0,0.12169686]
[1680359866877,0.0735,28365.0,28364.0,0.12219686]
[1680359882191,0.0735,28365.0,28364.0,0.05169686]
[1680359882490,0.0705,28364.0,28361.0,0.55]
[1680359882691,0.0705,28362.0,28360.0,0.0703]
[1680359882892,0.0705,28362.0,28361.0,0.55]
[1680359883286,0.0705,28362.0,28360.0,0.0703]
[1680359883894,0.05,28361.0,28360.0,0.07013093]
[1680359884097,0.05,28361.0,28360.0,0.0705]
[1680359884395,0.1205,28362.0,28360.0,0.0705]
[1680359884895,0.4212,28362.0,28360.0,0.0705]
[1680359885294,0.4242,28362.0,28360.0,0.0705]
[1680359886497,0.3742,28362.0,28360.0,0.0705]
[1680359887002,0.3742,28362.0,28359.0,0.0705]
[1680359887003,0.05,28360.0,28359.0,0.0705]
[1680359887195,0.12,28360.0,28359.0,0.0705]
[1680359887787,0.07,28360.0,28359.0,0.0705]
[1680359888191,0.0705,28360.0,28358.0,6e-05]
[1680359888397,0.1203,28359.0,28358.0,6e-05]
[1680359889593,0.1233,28359.0,28358.0,6e-05]
[1680359889899,0.1934,28359.0,28358.0,6e-05]
[1680359890197,0.4941,28359.0,28358.0,6e-05]
[1680359891689,0.4941,28359.0,28357.0,6e-05]
[1680359891895,0.1205,28358.0,28357.0,6e-05]
[1680359893500,0.1235,28358.0,28357.0,6e-05]
[1680359894097,0.636,28358.0,28357.0,6e-05]
[1680359895496,0.636,28358.0,28351.0,0.55]
[1680359895697,0.0705,28352.0,28351.0,0.55]
[1680359896006,0.0705,28352.0,28351.0,0.60293565]
[1680359897100,0.0735,28352.0,28351.0,0.60293565]
[1680359898699,0.4447,28352.0,28351.0,0.05293565]
[1680359898905,0.4447,28352.0,28350.0,6e-05]
[1680359899100,0.0703,28351.0,28350.0,6e-05]
[1680359899706,0.1203,28351.0,28350.0,6e-05]
[1680359899907,0.1233,28351.0,28350.0,6e-05]
[1680359900299,0.3348,28351.0,28350.0,6e-05]
[1680359900498,0.3345,28351.0,28350.0,6e-05]
[1680359901306,0.1935,28351.0,28350.0,6e-05]
[1680359901808,0.4942,28351.0,28350.0,6e-05]
[1680359904409,0.141,28350.0,28344.0,0.60258063]
[1680359904608,0.0705,28345.0,28344.0,0.05258063]
[1680359904804,0.1205,28345.0,28344.0,0.05258063]
[1680359905003,0.1205,28345.0,28341.0,0.72579879]
[1680359905204,0.0705,28342.0,28341.0,0.72579879]
[1680359906203,0.0705,28342.0,28341.0,0.65529879]
[1680359906802,0.0735,28342.0,28341.0,0.65717681]
[1680359908109,0.003,28342.0,28341.0,0.72767681]
[1680359908408,0.006,28342.0,28341.0,0.72767681]
[1680359909606,0.006,28342.0,28341.0,0.62237802]
[1680359909807,0.006,28342.0,28341.0,0.69277802]
[1680359910011,0.0705,28347.0,28342.0,0.05]
[1680359910202,0.0705,28347.0,28346.0,0.0705]
[1680359910401,0.0705,28347.0,28346.0,0.1205]
[1680359910711,0.0705,28347.0,28346.0,0.0705]
[1680359911116,0.0705,28347.0,28346.0,0.0765]
[1680359911117,0.0735,28347.0,28346.0,0.0765]
[1680359914009,0.0735,28347.0,28346.0,0.12904857]
[1680359915814,0.0735,28347.0,28346.0,0.0765]
[1680359916114,0.0735,28347.0,28346.0,0.006]
[1680359916115,0.2145,28347.0,28346.0,0.006]
[1680359916419,0.05,28346.0,28341.0,0.55187802]
[1680359916718,0.0705,28342.0,28341.0,0.85257802]
[1680359916913,0.0705,28343.0,28341.0,0.92247802]
[1680359917124,0.0705,28343.0,28342.0,0.05]
[1680359918126,0.0735,28343.0,28342.0,0.05]
[1680359920320,0.0735,28343.0,28341.0,0.92247802]
[1680359920721,0.0735,28343.0,28342.0,0.05]
[1680359921820,0.0735,28343.0,28342.0,0.05187842]
[1680359922026,0.0735,28343.0,28342.0,0.00187842]
[1680359922226,0.0735,28343.0,28342.0,0.05187842]
[1680359923125,0.0735,28343.0,28342.0,0.00187842]
[1680359926434,0.0735,28343.0,28342.0,0.30257842]
[1680359930935,0.0735,28343.0,28342.0,0.00187842]
[1680359939347,0.144,28343.0,28342.0,0.00187842]
[1680359943250,0.0735,28343.0,28342.0,0.00187842]
[1680359950356,0.0733802,28343.0,28342.0,0.05187842]
[1680359950553,0.07325802,28343.0,28342.0,0.35257842]
[1680359950768,0.0705,28346.0,28342.0,0.54929199]
[1680359951061,0.0705,28348.0,28345.0,0.3709]
[1680359951260,0.0705,28348.0,28347.0,0.0699]
[1680359951861,0.0705,28348.0,28347.0,0.071779]
[1680359953064,0.25934704,28352.0,28351.0,0.55]
[1680359953266,0.05,28354.0,28351.0,0.0705]
[1680359953463,0.0705,28353.0,28351.0,0.0705]
[1680359953766,0.1203,28352.0,28348.0,0.9207]
[1680359953966,0.07,28349.0,28348.0,0.9207]
[1680359956163,0.071,28349.0,28348.0,0.9487]
[1680359957065,0.001,28349.0,28348.0,0.9492]
[1680359959676,0.0704,28356.0,28349.0,0.191]
[1680359959869,0.0704,28356.0,28354.0,0.0701]
[1680359960069,0.6801,28358.0,28355.0,0.0705]
[1680359960264,0.0701,28358.0,28357.0,0.0702]
[1680359964270,0.07,28361.0,28357.0,0.3712]
[1680359964471,0.07,28361.0,28359.0,0.0702]
[1680359964669,0.07,28361.0,28360.0,0.05]
[1680359965273,0.07,28361.0,28359.0,0.0722]
[1680359965778,0.07,28361.0,28359.0,0.0702]
[1680359965975,0.07,28361.0,28360.0,0.002]
[1680359966473,0.07,28361.0,28360.0,0.052]
[1680359966670,0.07,28361.0,28360.0,0.3527]
[1680359966975,0.0705,28361.0,28360.0,0.3732]
[1680359967578,0.0705,28361.0,28360.0,0.3712]
[1680359968177,0.0705,28361.0,28360.0,0.3812]
[1680359973784,0.3714,28364.0,28360.0,0.3812]
[1680359974085,0.0707,28364.0,28363.0,0.3007]
[1680359974483,0.0707,28364.0,28363.0,0.3507]
[1680359974985,0.0707,28364.0,28363.0,0.3007]
[1680359975284,0.0707,28364.0,28363.0,0.3017]
[1680359976589,0.0707,28364.0,28363.0,0.3037]
[1680359976885,0.0705,28364.0,28363.0,0.3037]
[1680359977484,0.0881,28365.0,28363.0,0.3037]
[1680359979190,0.0881,28365.0,28361.0,0.1381]
[1680359979191,0.3007,28367.0,28364.0,0.1381]
[1680359979487,0.3007,28367.0,28365.0,0.05]
[1680359979882,0.3007,28367.0,28364.0,0.1381]
[1680359980389,0.3007,28367.0,28364.0,0.1391]
[1680359980583,0.3007,28367.0,28364.0,0.0891]
[1680359981887,0.3007,28367.0,28364.0,0.0881]
[1680359982083,0.3007,28367.0,28364.0,0.0891]
[1680359982683,0.3007,28367.0,28364.0,0.0881]
[1680359985892,0.05,28368.0,28364.0,0.0881]
[1680359986094,0.3507,28368.0,28364.0,0.0881]
[1680359986289,0.3007,28365.0,28361.0,0.3888]
[1680359986490,0.05,28364.0,28361.0,0.3888]
[1680359986687,0.0875,28363.0,28359.0,0.0873]
[1680359986888,0.05,28362.0,28359.0,0.0873]
[1680359987783,0.05,28362.0,28361.0,0.01]
[1680359987982,0.1377,28362.0,28361.0,0.01]
[1680359988184,0.4384,28362.0,28361.0,0.00624198]
[1680359988399,0.0881,28361.0,28359.0,0.028]
[1680359988601,0.1381,28360.0,28359.0,0.028]
[1680359988898,0.1381,28360.0,28355.0,0.60264534]
[1680359989199,0.3888,28358.0,28355.0,0.60264534]
[1680359989402,0.05,28357.0,28355.0,0.05264534]
[1680359989603,0.05,28357.0,28354.0,0.0873]
[1680359990705,0.05,28357.0,28355.0,0.028]
[1680359990905,0.05,28357.0,28354.0,0.1153]
[1680359994609,0.0876,28356.0,28354.0,0.028]
[1680359994805,0.05,28355.0,28354.0,0.028]
[1680359995704,0.0876,28356.0,28354.0,0.028]
[1680359996499,0.0876,28356.0,28352.0,0.55]
[1680359996701,0.0876,28356.0,28354.0,0.028]
[1680360002512,0.3007,28355.0,28354.0,0.028]
[1680360002813,0.3507,28355.0,28354.0,0.028]
[1680360003218,0.05,28355.0,28354.0,0.028]
[1680360003516,0.051,28355.0,28354.0,0.028]
[1680360003907,0.5385,28355.0,28354.0,0.028]
[1680360004109,0.8392,28355.0,28354.0,0.028]
[1680360004316,0.9273,28355.0,28354.0,0.028]
[1680360005619,0.9273,28355.0,28354.0,0.023]
[1680360006118,0.9273,28355.0,28354.0,0.016]
[1680360010215,0.4398,28355.0,28354.0,0.016]
[1680360013317,0.5273,28355.0,28354.0,0.016]
[1680360014523,0.5273,28355.0,28347.0,0.35251633]
[1680360014712,0.5273,28355.0,28347.0,0.3007]
[1680360014713,0.0875,28350.0,28347.0,0.3007]
[1680360015120,0.05,28349.0,28347.0,0.3007]
[1680360015319,0.1381,28349.0,28347.0,0.3007]
[1680360015620,0.1381,28349.0,28347.0,0.3147]
[1680360016014,0.1401,28349.0,28347.0,0.3147]
[1680360017026,0.0901,28349.0,28347.0,0.3147]
[1680360023629,0.0901,28349.0,28347.0,0.014]
[1680360024533,0.0901,28349.0,28348.0,0.3007]
[1680360025035,0.0901,28349.0,28348.0,0.3507]
[1680360025232,0.0901,28349.0,28348.0,0.3007]
[1680360025426,0.0901,28349.0,28348.0,0.3507]
[1680360026432,0.0901,28349.0,28348.0,0.3647]
[1680360026635,0.0901,28349.0,28348.0,0.3147]
[1680360026933,0.002,28349.0,28348.0,0.3147]
[1680360028824,0.052,28349.0,28348.0,0.014]
[1680360029025,0.002,28349.0,28348.0,0.013]
[1680360029225,0.052,28349.0,28348.0,0.013]
[1680360032540,0.002,28349.0,28348.0,0.013]
[1680360033032,0.052,28349.0,28348.0,0.013]
[1680360033339,0.002,28349.0,28348.0,0.013]
[1680360037043,0.002,28349.0,28348.0,0.3137]
[1680360037541,0.0725,28349.0,28348.0,0.3137]
[1680360037841,0.0725,28349.0,28348.0,0.3637]
[1680360039341,0.0725,28349.0,28348.0,0.3137]
[1680360039540,0.0725,28349.0,28348.0,0.3637]
[1680360042444,0.002,28349.0,28348.0,0.3637]
[1680360043239,0.002,28349.0,28348.0,0.4519]
[1680360043546,0.002,28349.0,28348.0,0.83159896]
[1680360044145,0.0873,28353.0,28349.0,0.05]
[1680360044348,0.0873,28353.0,28352.0,0.3007]
[1680360044647,0.088,28357.0,28352.0,0.3883]
[1680360044850,0.088,28357.0,28355.0,0.3007]
[1680360045551,0.011,28357.0,28356.0,0.0879]
[1680360045744,0.011,28357.0,28356.0,0.1379]
[1680360046047,0.3116,28363.0,28356.0,0.2259]
[1680360046243,0.3116,28363.0,28362.0,0.0876]
[1680360046548,0.3889,28367.0,28362.0,0.0876]
[1680360046939,0.05,28366.0,28362.0,0.0876]
[1680360047839,0.053,28366.0,28362.0,0.0876]
[1680360052551,0.003,28366.0,28362.0,0.0876]
[1680360052755,0.003,28366.0,28363.0,0.3007]
[1680360053048,0.003,28366.0,28364.0,0.05]
[1680360053649,0.003,28366.0,28363.0,0.3007]
[1680360053954,0.05,28366.0,28363.0,0.3007]
[1680360054250,0.003,28366.0,28364.0,0.05]
[1680360054551,0.003,28366.0,28365.0,0.0879]
[1680360054942,0.3007,28367.0,28365.0,0.0879]
[1680360055146,0.003,28366.0,28365.0,0.0879]
[1680360056753,0.001,28366.0,28365.0,0.0979]
[1680360057149,0.1378,28369.0,28365.0,0.0879]
[1680360057349,0.001,28366.0,28365.0,0.1039]
[1680360058055,0.001,28366.0,28365.0,0.0979]
[1680360058457,0.001,28366.0,28365.0,0.1039]
[1680360062558,0.001,28366.0,28365.0,0.0979]
[1680360067063,0.001,28366.0,28365.0,0.0982]
[1680360068656,0.3007,28372.0,28366.0,0.1382]
[1680360068861,0.3007,28372.0,28369.0,0.0879]
[1680360069560,0.3127,28372.0,28369.0,0.0879]
[1680360070061,0.3127,28372.0,28369.0,0.0899]
[1680360072055,0.3127,28372.0,28370.0,0.05]
[1680360072559,0.3127,28372.0,28369.0,0.0899]
[1680360072954,0.3127,28372.0,28370.0,0.002]
[1680360073158,0.3127,28372.0,28370.0,0.052]
[1680360073356,0.3127,28372.0,28370.0,0.002]
[1680360074063,0.05,28371.0,28370.0,0.002]
[1680360074575,0.05,28371.0,28369.0,0.0899]
[1680360074756,0.3007,28372.0,28369.0,0.0879]
[1680360075064,0.012,28371.0,28370.0,0.002]
[1680360075261,0.062,28371.0,28370.0,0.002]
[1680360075558,0.012,28371.0,28369.0,0.0899]
[1680360075762,0.05,28371.0,28369.0,0.0879]
[1680360075951,0.062,28371.0,28370.0,0.002]
[1680360076356,0.012,28371.0,28370.0,0.002]
[1680360076652,0.062,28371.0,28370.0,0.002]
[1680360076856,0.012,28371.0,28370.0,0.002]
[1680360077165,0.012,28371.0,28369.0,0.0899]
[1680360077363,0.062,28371.0,28369.0,0.0899]
[1680360077658,0.062,28371.0,28370.0,0.002]
[1680360078162,0.062,28371.0,28369.0,0.0899]
[1680360078663,0.062,28371.0,28370.0,0.002]
[1680360078862,0.012,28371.0,28370.0,0.002]
[1680360079057,0.012,28371.0,28369.0,0.0899]
[1680360079259,0.062,28371.0,28369.0,0.0899]
[1680360079459,0.012,28371.0,28369.0,0.0899]
[1680360079964,0.062,28371.0,28369.0,0.0899]
[1680360080260,0.012,28371.0,28370.0,0.002]
[1680360080563,0.05,28371.0,28369.0,0.0879]
[1680360080763,0.012,28371.0,28369.0,0.0899]
[1680360080967,0.062,28371.0,28369.0,0.0899]
[1680360081356,0.062,28371.0,28370.0,0.002]
[1680360081561,0.1502,28371.0,28370.0,0.002]
[1680360081763,0.1502,28371.0,28369.0,0.002]
[1680360081963,0.3007,28370.0,28369.0,0.002]
[1680360082365,0.3507,28370.0,28369.0,0.002]
[1680360083163,0.3507,28370.0,28366.0,0.0882]
[1680360083467,0.3007,28367.0,28363.0,0.1395219]
[1680360083664,0.3887,28364.0,28360.0,0.12244862]
[1680360083966,0.3007,28361.0,28360.0,0.0874]
[1680360084377,0.3007,28361.0,28360.0,0.48552208]
[1680360084866,0.05,28363.0,28360.0,0.48552208]
[1680360085167,0.05,28363.0,28360.0,0.51052208]
[1680360085168,0.001,28361.0,28360.0,0.51052208]
[1680360085367,0.3017,28361.0,28360.0,0.51052208]
[1680360085764,0.001,28361.0,28360.0,0.51052208]
[1680360085964,0.3017,28361.0,28360.0,0.51052208]
[1680360086372,0.001,28361.0,28360.0,0.51052208]
[1680360086670,0.051,28363.0,28360.0,0.51052208]
[1680360086970,0.3017,28361.0,28360.0,0.51052208]
[1680360087373,0.001,28361.0,28360.0,0.51052208]
[1680360087568,0.3017,28361.0,28360.0,0.51052208]
[1680360088767,0.001,28361.0,28360.0,0.51052208]
[1680360089469,0.3017,28361.0,28360.0,0.51052208]
[1680360091267,0.001,28361.0,28360.0,0.51082208]
[1680360091472,0.001,28361.0,28360.0,0.81152208]
[1680360096670,0.001,28361.0,28360.0,0.51082208]
[1680360096878,0.001,28361.0,28360.0,0.81152208]
[1680360097079,0.3007,28367.0,28361.0,0.4027]
[1680360097279,0.0879,28372.0,28366.0,0.0874]
[1680360097577,0.0879,28372.0,28367.0,0.54114798]
[1680360097972,0.0879,28372.0,28368.0,0.05]
[1680360098475,0.1009,28372.0,28368.0,0.05]
[1680360098966,0.1509,28372.0,28368.0,0.002]
[1680360099170,0.1009,28372.0,28368.0,0.002]
[1680360101879,0.1509,28372.0,28368.0,0.002]
[1680360102574,0.0879,28369.0,28368.0,0.002]
[1680360103177,0.1379,28369.0,28368.0,0.002]
[1680360103577,0.1469,28369.0,28368.0,0.001]
[1680360104276,0.3527,28368.0,28361.0,6e-05]
[1680360104480,0.3527,28368.0,28353.0,0.24584454]
[1680360104481,1.4646,28362.0,28353.0,0.16871464]
[1680360104678,0.7769,28354.0,28348.0,0.29554006]
[1680360104983,0.6014,28349.0,28345.0,0.16871464]
[1680360105284,0.3007,28346.0,28341.0,0.16871464]
[1680360105474,0.3007,28346.0,28340.0,0.21019384]
[1680360105475,0.0878,28345.0,28339.0,0.25316996]
[1680360105676,0.3007,28343.0,28340.0,0.00164474]
[1680360106079,0.3007,28343.0,28341.0,0.0877]
[1680360106681,0.1378,28345.0,28341.0,0.0877]
[1680360106886,0.05,28345.0,28342.0,0.0879]
[1680360107088,0.05,28344.0,28342.0,0.0879]
[1680360107287,0.3007,28346.0,28342.0,0.0879]
[1680360107587,0.002,28343.0,28342.0,0.0879]
[1680360107879,0.052,28345.0,28342.0,0.1019]
[1680360108275,0.05,28345.0,28342.0,0.1019]
[1680360108783,0.052,28345.0,28342.0,0.1019]
[1680360110486,0.002,28345.0,28342.0,0.1019]
[1680360111179,0.052,28345.0,28342.0,0.1019]
[1680360111580,0.002,28345.0,28342.0,0.1019]
[1680360112383,0.052,28345.0,28342.0,0.1019]
[1680360112889,0.002,28345.0,28342.0,0.1019]
[1680360113282,0.052,28345.0,28342.0,0.1019]
[1680360115388,0.052,28345.0,28342.0,0.014]
[1680360115389,0.0873,28344.0,28342.0,0.014]
[1680360115585,0.05,28343.0,28342.0,0.014]
[1680360116780,0.002,28343.0,28342.0,0.014]
[1680360117186,0.002,28343.0,28342.0,0.1022]
[1680360117386,0.002,28343.0,28342.0,0.1522]
[1680360117586,0.002,28343.0,28342.0,0.52095025]
[1680360118492,0.002,28343.0,28342.0,0.38275025]
[1680360119285,0.002,28343.0,28342.0,0.38433398]
[1680360123794,0.3889,28349.0,28343.0,0.05]
[1680360123995,0.3889,28349.0,28344.0,0.3889]
[1680360124293,0.3889,28349.0,28344.0,0.77499848]
[1680360124497,0.05,28348.0,28344.0,0.77499848]
[1680360125491,0.05,28348.0,28344.0,0.77999848]
[1680360126899,0.1378,28348.0,28344.0,0.77939848]
[1680360129900,0.1378,28348.0,28344.0,0.47869848]
[1680360131805,0.3007,28346.0,28344.0,0.47869848]
[1680360132103,0.05,28345.0,28344.0,0.47869848]
[1680360132505,0.1382,28345.0,28344.0,0.005]
[1680360133305,0.4389,28345.0,28344.0,0.005]
[1680360133701,0.4409,28345.0,28344.0,0.015]
[1680360133907,0.4409,28345.0,28342.0,0.00158373]
[1680360134107,0.3889,28343.0,28338.0,0.14002197]
[1680360134307,0.3007,28340.0,28336.0,0.55]
[1680360134502,0.3007,28340.0,28339.0,0.00118464]
[1680360134703,0.5656,28340.0,28327.0,0.10785489]
[1680360134900,1.1369,28342.0,28326.0,0.55]
[1680360134901,0.4771,28330.0,28326.0,0.55]
[1680360135100,0.4771,28327.0,28323.0,0.05242727]
[1680360135307,0.4766,28324.0,28311.0,0.21019384]
[1680360135509,0.6014,28312.0,28307.0,0.35007844]
[1680360135703,0.6014,28312.0,28300.0,0.65]
[1680360135704,0.6534,28308.0,28300.0,0.65]
[1680360136012,0.0882,28304.0,28300.0,0.65]
[1680360136206,0.0875,28307.0,28302.0,0.0877]
[1680360136410,0.3007,28313.0,28305.0,0.55]
[1680360136612,0.3007,28308.0,28305.0,0.55]
[1680360136806,0.3007,28313.0,28305.0,0.6379]
[1680360137004,0.0882,28315.0,28310.0,0.0879]
[1680360137411,0.1754,28311.0,28295.0,0.3007]
[1680360137600,0.3007,28303.0,28298.0,0.55]
[1680360138118,0.1373,28303.0,28299.0,0.3965387]
[1680360138301,0.0882,28301.0,28299.0,0.3965387]
[1680360138815,0.0882,28311.0,28304.0,0.55]
[1680360139011,0.1002,28315.0,28310.0,0.55]
[1680360139315,0.0873,28317.0,28313.0,0.3007]
[1680360139505,0.0873,28317.0,28316.0,0.3007]
[1680360139704,0.088,28320.0,28316.0,0.3007]
[1680360140008,0.088,28320.0,28316.0,0.69210376]
[1680360140308,0.012,28317.0,28316.0,0.69410376]
[1680360140911,0.012,28320.0,28317.0,0.05]
[1680360141115,0.012,28320.0,28319.0,0.3889]
[1680360141305,0.05,28326.0,28320.0,0.05]
[1680360141617,0.0878,28327.0,28323.0,0.3007]
[1680360141912,0.0873,28332.0,28326.0,0.0877]
[1680360142210,0.0873,28332.0,28327.0,0.54485484]
[1680360142413,0.4419,28333.0,28327.0,0.54665484]
[1680360143312,0.4419,28333.0,28328.0,0.05]
[1680360143511,0.1412,28339.0,28332.0,0.14]
[1680360143715,0.1412,28339.0,28333.0,0.3007]
[1680360144010,0.1412,28339.0,28333.0,0.69993292]
[1680360144314,0.1412,28339.0,28334.0,0.05]
[1680360144810,0.1412,28339.0,28335.0,0.39964205]
[1680360145008,0.05,28338.0,28335.0,0.39964205]
[1680360145211,0.1409,28336.0,28333.0,0.002]
[1680360145413,0.3007,28337.0,28333.0,0.002]
[1680360145414,0.1412,28334.0,28333.0,0.002]
[1680360145608,0.1412,28334.0,28331.0,0.3007]
[1680360145916,0.1412,28333.0,28331.0,0.6014]
[1680360146105,0.14,28336.0,28333.0,0.002]
[1680360146307,0.14,28336.0,28334.0,0.3007]
[1680360146510,0.14,28336.0,28335.0,0.05]
[1680360146816,0.14,28336.0,28334.0,0.3007]
[1680360147210,0.14,28336.0,28331.0,0.4635]
[1680360147417,0.14,28336.0,28332.0,0.05]
[1680360147716,0.1912,28339.0,28333.0,0.1411]
[1680360147916,0.1412,28339.0,28334.0,0.05]
[1680360148109,0.1912,28339.0,28334.0,0.052]
[1680360148305,0.3007,28336.0,28334.0,0.05]
[1680360148505,0.05,28335.0,28333.0,0.1411]
[1680360148709,0.3007,28336.0,28335.0,0.3959723]
[1680360149113,0.3007,28336.0,28334.0,0.40848499]
[1680360149312,0.05,28335.0,28334.0,0.001]
[1680360149510,0.491,28335.0,28333.0,0.009]
[1680360149715,0.1912,28334.0,28326.0,0.3007]
[1680360149911,0.1412,28330.0,28325.0,0.55]
[1680360150115,0.1412,28330.0,28327.0,0.05]
[1680360150519,0.1412,28330.0,28328.0,0.38998391]
[1680360150714,0.1412,28330.0,28329.0,0.05]
[1680360150914,0.1412,28330.0,28328.0,0.38998391]
[1680360151616,0.1412,28330.0,28328.0,0.41798391]
[1680360153120,0.3007,28337.0,28329.0,0.4916]
[1680360153421,0.3007,28337.0,28332.0,0.3007]
[1680360153623,0.3007,28337.0,28333.0,0.05]
[1680360153819,0.3007,28337.0,28333.0,0.42217866]
[1680360154115,0.05,28335.0,28333.0,0.37217866]
[1680360154521,0.3007,28337.0,28333.0,0.37417866]
[1680360154716,0.3007,28337.0,28334.0,0.05]
[1680360154915,0.1912,28336.0,28333.0,0.38017866]
[1680360155123,0.1412,28336.0,28335.0,0.05]
[1680360155622,0.1412,28336.0,28334.0,0.05]
[1680360156122,0.1412,28336.0,28333.0,0.37417866]
[1680360156317,0.1912,28336.0,28335.0,0.3796478]
[1680360156526,0.1912,28336.0,28333.0,0.002]
[1680360156817,0.1912,28336.0,28335.0,0.002]
[1680360157128,0.1912,28336.0,28333.0,0.002]
[1680360157517,0.05,28335.0,28333.0,0.002]
[1680360157719,0.1912,28336.0,28333.0,0.002]
[1680360158027,0.05,28335.0,28333.0,0.002]
[1680360158423,0.1403,28334.0,28333.0,0.002]
[1680360158719,0.1403,28334.0,28325.0,0.3007]
[1680360158720,0.441,28334.0,28325.0,0.8507]
[1680360158925,0.1412,28326.0,28325.0,0.8507]
[1680360160618,0.1412,28326.0,28325.0,0.578]
[1680360162826,0.14114,28326.0,28325.0,0.578]
[1680360164015,0.14114,28326.0,28325.0,0.57963849]
[1680360164715,0.14114,28326.0,28325.0,0.02963849]
[1680360167926,0.4027,28325.0,28311.0,0.3007]
[1680360168122,0.3007,28314.0,28310.0,0.55]
[1680360168628,0.4419,28317.0,28311.0,0.1412]
[1680360168823,0.4419,28317.0,28312.0,0.05]
[1680360169225,0.001,28314.0,28312.0,0.05]
[1680360169631,0.4499,28317.0,28312.0,0.05]
[1680360169838,0.05,28316.0,28311.0,0.1922]
[1680360170127,0.001,28314.0,28312.0,0.009]
[1680360170332,0.001,28314.0,28312.0,0.059]
[1680360170532,0.14,28313.0,28312.0,0.009]
[1680360171326,0.14,28313.0,28312.0,0.001]
[1680360171729,0.142,28313.0,28312.0,0.009]
[1680360173626,0.002,28313.0,28312.0,0.4508]
[1680360173822,0.1412,28318.0,28313.0,0.05]
[1680360174223,0.3507,28317.0,28315.0,0.05]
[1680360174422,0.3007,28317.0,28315.0,0.05]
[1680360174629,0.3507,28317.0,28316.0,0.37018505]
[1680360174830,0.3007,28317.0,28316.0,0.37018505]
[1680360175133,0.4419,28317.0,28316.0,0.05]
[1680360175327,0.4499,28317.0,28315.0,0.001]
[1680360175533,0.4419,28316.0,28315.0,0.001]
[1680360176033,0.4419,28316.0,28307.0,0.3007]
[1680360176233,0.1412,28312.0,28307.0,0.3007]
[1680360176434,0.05,28311.0,28307.0,0.3007]
[1680360176635,0.1412,28312.0,28307.0,0.3007]
[1680360177029,0.1412,28314.0,28308.0,0.1408]
[1680360177231,0.05,28313.0,28308.0,0.1408]
[1680360177536,0.002,28312.0,28310.0,0.561]
[1680360178132,0.052,28313.0,28310.0,0.561]
[1680360178334,0.002,28313.0,28310.0,0.561]
[1680360178535,0.002,28312.0,28310.0,0.561]
[1680360179136,0.002,28312.0,28311.0,0.00208083]
[1680360179836,0.3527,28313.0,28311.0,0.00208083]
[1680360180238,0.002,28312.0,28311.0,0.01308083]
[1680360181327,0.3527,28313.0,28311.0,0.01308083]
[1680360181533,0.052,28313.0,28311.0,0.01308083]
[1680360181727,0.05,28315.0,28311.0,0.00208083]
[1680360181931,0.002,28312.0,28311.0,0.01308083]
[1680360182741,0.05,28314.0,28311.0,0.00208083]
[1680360182941,0.002,28313.0,28311.0,0.01308083]
[1680360183237,0.002,28312.0,28311.0,0.01308083]
[1680360183640,0.052,28312.0,28311.0,0.01308083]
[1680360183839,0.002,28312.0,28311.0,0.01308083]
[1680360184143,0.3027,28313.0,28311.0,0.01308083]
[1680360184535,0.002,28312.0,28311.0,0.01308083]
[1680360184731,0.002,28312.0,28311.0,0.15298083]
[1680360185339,0.3007,28320.0,28312.0,0.05]
[1680360185644,0.05,28319.0,28314.0,0.3007]
[1680360185843,0.3007,28320.0,28314.0,0.3007]
[1680360186039,0.3007,28320.0,28316.0,0.1408]
[1680360186240,0.3007,28320.0,28317.0,0.05]
[1680360186436,0.014,28318.0,28317.0,0.05]
[1680360186837,0.014,28318.0,28316.0,0.1408]
[1680360187038,0.3257,28320.0,28317.0,0.05]
[1680360187239,0.025,28320.0,28318.0,0.1408]
[1680360187543,0.025,28320.0,28319.0,0.1909]
[1680360187943,0.3007,28325.0,28320.0,0.05]
[1680360188142,0.05,28324.0,28322.0,0.14]
[1680360188744,0.05,28326.0,28322.0,0.14]
[1680360189145,0.002,28324.0,28323.0,0.05]
[1680360189642,0.002,28326.0,28323.0,0.57283756]
[1680360189946,0.002,28326.0,28325.0,0.1412]
[1680360190239,0.3007,28327.0,28325.0,0.1412]
[1680360190646,0.3007,28327.0,28326.0,0.05]
[1680360191342,0.3007,28330.0,28326.0,0.45863279]
[1680360191734,0.3007,28330.0,28326.0,0.46063279]
[1680360192140,0.3027,28330.0,28326.0,0.45963279]
[1680360192742,0.3027,28330.0,28328.0,0.1408]
[1680360192940,0.3027,28330.0,28329.0,0.05]
[1680360193140,0.3027,28330.0,28329.0,0.42825213]
[1680360193641,0.3027,28330.0,28329.0,0.37825213]